bitfinex/quotes_ETHUSD_20251130
["timestamp","ask_amount","ask_price","bid_price","bid_amount"]
[1764475579677,4.26293822,3005.4,3005.3,0.9355]
[1764475579887,5.35808995,3005.4,3005.3,0.001]
[1764475580084,8.69267437,3005.4,3005.3,0.001]
[1764475581504,8.79186465,3005.4,3005.3,0.001]
[1764475582312,9.25376465,3005.4,3005.3,0.001]
[1764475583108,8.79186465,3005.4,3005.3,0.001]
[1764475584204,9.25376465,3005.4,3005.3,0.001]
[1764475589607,8.81864004,3005.4,3005.3,0.001]
[1764475589812,9.25376465,3005.4,3005.3,0.001]
[1764475591058,8.79186465,3005.4,3005.3,0.001]
[1764475591213,9.25376465,3005.4,3005.3,0.001]
[1764475592050,8.79186465,3005.4,3005.3,0.001]
[1764475593060,8.04544004,3005.4,3005.3,0.4571]
[1764475593254,4.59887255,3005.4,3005.3,0.9461]
[1764475593755,4.38887255,3005.4,3005.3,0.9461]
[1764475594051,4.59887255,3005.4,3005.3,0.9461]
[1764475596770,4.26293822,3005.4,3005.3,0.9461]
[1764475597760,0.72559411,3005.4,3005.3,0.9461]
[1764475598070,0.93559411,3005.4,3005.3,0.9461]
[1764475598269,4.26293822,3005.4,3005.3,0.9461]
[1764475598450,4.05293822,3005.4,3005.3,0.9461]
[1764475598655,4.26293822,3005.4,3005.3,0.9461]
[1764475607579,4.05293822,3005.4,3005.3,0.9461]
[1764475607877,4.26293822,3005.4,3005.3,0.9461]
[1764475612484,4.59887255,3005.4,3005.3,0.9461]
[1764475612654,4.59887255,3005.4,3005.3,0.001]
[1764475613259,4.59887255,3005.4,3005.3,0.4578]
[1764475613551,4.26293822,3005.4,3005.3,0.4578]
[1764475613757,4.59887255,3005.4,3005.3,0.9264]
[1764475613987,4.26293822,3005.4,3005.3,0.9264]
[1764475616286,4.59887255,3005.4,3005.3,0.9264]
[1764475616487,4.26293822,3005.4,3005.3,0.9264]
[1764475617379,4.26293822,3005.4,3005.3,0.4578]
[1764475617585,4.26293822,3005.4,3005.3,0.9264]
[1764475621200,0.93559411,3005.4,3005.3,0.9264]
[1764475621402,4.26293822,3005.4,3005.3,0.9264]
[1764475623289,0.93559411,3005.4,3005.3,0.9264]
[1764475623668,4.26293822,3005.4,3005.3,0.9264]
[1764475626964,4.26293822,3005.4,3005.3,0.4578]
[1764475627865,4.26293822,3005.4,3005.3,0.9264]
[1764475628788,3.53734411,3005.4,3005.3,0.9264]
[1764475633381,0.002,3005.5,3005.3,0.9264]
[1764475633582,0.002,3005.5,3005.4,0.9254]
[1764475633788,0.002,3005.5,3005.4,1.35420936]
[1764475634183,0.002,3005.5,3005.4,4.68155347]
[1764475636804,0.002,3005.5,3005.4,1.35420936]
[1764475637706,0.002,3005.5,3005.4,4.68155347]
[1764475638086,0.002,3005.5,3005.4,4.71482691]
[1764475638599,0.002,3005.5,3005.4,5.12033091]
[1764475639105,0.002,3005.5,3005.4,5.33233091]
[1764475646316,0.002,3005.5,3005.4,5.29905747]
[1764475646490,0.002,3005.5,3005.4,5.63153995]
[1764475646884,0.002,3005.5,3005.4,5.63253995]
[1764475647083,0.002,3005.5,3005.4,5.30005747]
[1764475648135,0.002,3005.5,3005.4,5.33333091]
[1764475648797,0.002,3005.5,3005.4,5.66581339]
[1764475649615,0.002,3005.5,3005.4,5.30005747]
[1764475650943,0.002,3005.5,3005.4,5.33333091]
[1764475657141,0.002,3005.5,3005.4,5.30005747]
[1764475657847,0.002,3005.5,3005.4,5.2657008]
[1764475658443,0.002,3005.5,3005.4,5.29897424]
[1764475659230,0.002,3005.5,3005.4,5.2657008]
[1764475664656,0.002,3005.5,3005.4,0.406504]
[1764475664657,0.4758,3005.5,3005.4,0.406504]
[1764475665022,0.002,3005.5,3005.4,0.406504]
[1764475665421,0.002,3005.5,3005.4,0.860804]
[1764475665617,0.002,3005.5,3005.4,4.67204811]
[1764475665854,0.002,3005.5,3005.4,5.24377636]
[1764475666218,0.002,3005.5,3005.4,5.37707348]
[1764475667345,0.002,3005.5,3005.4,5.34380004]
[1764475668234,0.002,3005.5,3005.4,4.40560004]
[1764475668749,0.002,3005.5,3005.4,4.85990004]
[1764475668937,0.002,3005.5,3005.4,4.89317348]
[1764475669116,0.002,3005.5,3005.4,5.37707348]
[1764475671656,0.002,3005.5,3005.4,4.85990004]
[1764475671861,0.2471,3005.5,3005.4,0.001]
[1764475672157,0.7222,3005.5,3005.4,0.001]
[1764475672652,0.2471,3005.5,3005.4,0.001]
[1764475679061,0.7222,3005.5,3005.4,0.001]
[1764475679258,0.2471,3005.5,3005.4,0.001]
[1764475680857,0.7222,3005.5,3005.4,0.001]
[1764475681047,0.2471,3005.5,3005.4,0.001]
[1764475682036,0.7222,3005.5,3005.4,0.001]
[1764475682872,1.12712332,3005.5,3005.4,0.001]
[1764475683836,0.7222,3005.5,3005.4,0.001]
[1764475685342,7.28106655,3005.5,3005.4,0.001]
[1764475685539,8.21666066,3005.5,3005.4,0.001]
[1764475685777,8.55259499,3005.5,3005.4,0.001]
[1764475686867,8.65178527,3005.5,3005.4,0.001]
[1764475687175,9.84967642,3005.5,3005.4,0.001]
[1764475688268,9.41455181,3005.5,3005.4,0.001]
[1764475688668,9.20455181,3005.5,3005.4,0.001]
[1764475688983,9.41455181,3005.5,3005.4,0.001]
[1764475689186,9.20455181,3005.5,3005.4,0.001]
[1764475689343,9.41455181,3005.5,3005.4,0.001]
[1764475689969,9.75048614,3005.5,3005.4,0.001]
[1764475691462,9.84967642,3005.5,3005.4,0.001]
[1764475693170,9.41455181,3005.5,3005.4,0.001]
[1764475693472,9.75048614,3005.5,3005.4,0.001]
[1764475693970,9.54790625,3005.5,3005.4,0.001]
[1764475694201,9.33790625,3005.5,3005.4,0.001]
[1764475694347,9.41455181,3005.5,3005.4,0.001]
[1764475696363,0.002,3005.5,3005.4,0.9459]
[1764475697254,0.2703,3005.5,3005.4,0.001]
[1764475697580,3.97493315,3005.5,3005.4,0.001]
[1764475699282,7.30216655,3005.5,3005.4,0.001]
[1764475699687,4.0705334,3005.5,3005.4,0.001]
[1764475700252,5.13346239,3005.5,3005.4,0.001]
[1764475704068,4.66046239,3005.5,3005.4,0.001]
[1764475704366,5.11296239,3005.5,3005.4,0.001]
[1764475707260,5.8385565,3005.5,3005.4,0.001]
[1764475707489,6.17449083,3005.5,3005.4,0.001]
[1764475707802,5.8385565,3005.5,3005.4,0.001]
[1764475710366,6.17449083,3005.5,3005.4,0.001]
[1764475710794,5.8385565,3005.5,3005.4,0.001]
[1764475711140,6.17449083,3005.5,3005.4,0.001]
[1764475711597,5.8385565,3005.5,3005.4,0.001]
[1764475711775,6.17449083,3005.5,3005.4,0.001]
[1764475711978,5.8385565,3005.5,3005.4,0.001]
[1764475712299,5.6183565,3005.5,3005.4,0.001]
[1764475712602,4.55542751,3005.5,3005.4,0.001]
[1764475716482,4.89136184,3005.5,3005.4,0.001]
[1764475716677,4.55542751,3005.5,3005.4,0.001]
[1764475716878,4.26482751,3005.5,3005.4,0.001]
[1764475717210,5.06911274,3005.5,3005.4,0.001]
[1764475720078,5.36131274,3005.5,3005.4,0.001]
[1764475722531,6.14654707,3005.5,3005.4,0.001]
[1764475722701,6.24573735,3005.5,3005.4,0.001]
[1764475723217,8.29125935,3005.5,3005.4,0.001]
[1764475723610,6.24573735,3005.5,3005.4,0.001]
[1764475723925,9.44373735,3005.5,3005.4,0.001]
[1764475724121,6.24573735,3005.5,3005.4,0.001]
[1764475724338,11.20517435,3005.5,3005.4,0.001]
[1764475725219,13.31190235,3005.5,3005.4,0.001]
[1764475725932,12.87288335,3005.5,3005.4,0.001]
[1764475726293,12.86888335,3005.5,3005.4,0.001]
[1764475727431,12.86488335,3005.5,3005.4,0.001]
[1764475727616,19.22488335,3005.5,3005.4,0.001]
[1764475728206,19.22288335,3005.5,3005.4,0.001]
[1764475728935,18.24288335,3005.5,3005.4,0.001]
[1764475729326,19.23688335,3005.5,3005.4,0.001]
[1764475730240,19.23288335,3005.5,3005.4,0.001]
[1764475730446,18.23288335,3005.5,3005.4,0.001]
[1764475730734,12.60573735,3005.5,3005.4,0.001]
[1764475730943,19.23088335,3005.5,3005.4,0.001]
[1764475731119,18.23088335,3005.5,3005.4,0.001]
[1764475731316,19.22888335,3005.5,3005.4,0.001]
[1764475731721,18.22888335,3005.5,3005.4,0.001]
[1764475732339,12.60573735,3005.5,3005.4,0.001]
[1764475732644,18.22688335,3005.5,3005.4,0.001]
[1764475732811,12.60573735,3005.5,3005.4,0.001]
[1764475733842,11.51131274,3005.5,3005.4,0.001]
[1764475734043,12.60573735,3005.5,3005.4,0.001]
[1764475736116,12.50654707,3005.5,3005.4,0.001]
[1764475737545,12.60573735,3005.5,3005.4,0.001]
[1764475738411,12.50654707,3005.5,3005.4,0.001]
[1764475739367,12.60573735,3005.5,3005.4,0.001]
[1764475739824,12.50654707,3005.5,3005.4,0.001]
[1764475740848,12.22514707,3005.5,3005.4,0.001]
[1764475741012,12.32433735,3005.5,3005.4,0.001]
[1764475741448,12.22514707,3005.5,3005.4,0.001]
[1764475741951,12.01514707,3005.5,3005.4,0.001]
[1764475742141,11.88921274,3005.5,3005.4,0.001]
[1764475742750,10.62482751,3005.5,3005.4,0.4698]
[1764475742955,9.8992334,3005.5,3005.4,0.4698]
[1764475743118,10.62482751,3005.5,3005.4,0.4698]
[1764475743519,10.41482751,3005.5,3005.4,0.4698]
[1764475743848,7.29759411,3005.5,3005.4,0.4698]
[1764475744051,0.002,3005.5,3005.4,4.25804411]
[1764475744348,0.002,3005.9,3005.4,8.34413183]
[1764475744572,0.002,3005.9,3005.8,0.4688]
[1764475744916,0.002,3005.9,3005.8,1.335204]
[1764475746055,0.002,3005.9,3005.8,4.66210532]
[1764475746260,0.002,3005.9,3005.8,5.461026]
[1764475747024,0.002,3005.9,3005.8,1.72862068]
[1764475747855,0.002,3005.9,3005.8,0.9297]
[1764475753457,0.002,3005.9,3005.8,4.25660132]
[1764475753666,0.002,3005.9,3005.8,4.87210532]
[1764475755447,0.002,3005.9,3005.8,4.90537433]
[1764475755963,0.002,3005.9,3005.8,4.87210532]
[1764475756260,0.002,3005.9,3005.8,6.36133254]
[1764475757441,0.002,3005.9,3005.8,6.39460155]
[1764475760286,0.002,3006.2,3005.9,1.335204]
[1764475760577,0.002,3006.2,3006.1,1.068504]
[1764475760890,0.002,3006.2,3006.1,1.61729102]
[1764475761175,0.002,3006.2,3006.1,1.67548702]
[1764475761339,0.002,3006.2,3006.1,1.1267]
[1764475761537,0.002,3006.2,3006.1,0.663]
[1764475761758,0.002,3006.2,3006.1,0.4688]
[1764475761963,0.2733,3006.2,3005.7,0.6607]
[1764475762375,0.2733,3006.2,3005.8,0.4642]
[1764475765744,0.60923433,3006.2,3005.7,0.197]
[1764475765944,1.06483433,3006.2,3005.8,0.001]
[1764475766545,4.39129867,3006.2,3005.8,0.001]
[1764475766754,4.05536434,3006.2,3005.8,0.001]
[1764475767142,0.7289,3006.2,3005.8,0.4652]
[1764475767366,4.05537843,3006.2,3005.8,0.4652]
[1764475767842,0.7289,3006.2,3005.8,0.4652]
[1764475769775,0.0046,3005.9,3005.8,0.001]
[1764475770877,0.6554,3005.9,3005.8,0.001]
[1764475771075,0.1861,3005.9,3005.8,0.001]
[1764475771375,0.6554,3005.9,3005.8,0.001]
[1764475772476,4.41731525,3005.9,3005.8,0.001]
[1764475772658,4.77759015,3005.9,3005.8,0.001]
[1764475773251,5.11352448,3005.9,3005.8,0.001]
[1764475773474,4.77759015,3005.9,3005.8,0.001]
[1764475777677,5.21271476,3005.9,3005.8,0.001]
[1764475777878,5.93830887,3005.9,3005.8,0.001]
[1764475778388,5.50318426,3005.9,3005.8,0.001]
[1764475778565,5.83911859,3005.9,3005.8,0.001]
[1764475779878,5.50318426,3005.9,3005.8,0.001]
[1764475780056,5.03388426,3005.9,3005.8,0.001]
[1764475780983,5.36981859,3005.9,3005.8,0.001]
[1764475781190,5.83911859,3005.9,3005.8,0.001]
[1764475781555,5.36981859,3005.9,3005.8,0.001]
[1764475782687,5.03388426,3005.9,3005.8,0.001]
[1764475782882,5.18831859,3005.9,3005.8,0.001]
[1764475785702,6.03851859,3005.9,3005.8,0.001]
[1764475786804,12.39851859,3005.9,3005.8,0.001]
[1764475786966,3.66577551,3005.5,3005.4,0.001]
[1764475787167,11.22696962,3005.5,3005.4,0.001]
[1764475787393,11.69626962,3005.5,3005.4,0.001]
[1764475788082,15.02350302,3005.5,3005.4,0.001]
[1764475788677,11.22436184,3005.5,3005.4,0.001]
[1764475788892,13.0092723,3005.5,3005.4,0.001]
[1764475789297,13.34520663,3005.5,3005.4,0.001]
[1764475789595,13.0092723,3005.5,3005.4,0.001]
[1764475790901,13.34520663,3005.5,3005.4,0.001]
[1764475791102,13.81450663,3005.5,3005.4,0.001]
[1764475791802,13.4785723,3005.5,3005.4,0.001]
[1764475792701,13.91369691,3005.5,3005.4,0.001]
[1764475793104,17.14434781,3005.5,3005.4,0.001]
[1764475799408,16.2399232,3005.5,3005.4,0.001]
[1764475800005,13.0092723,3005.5,3005.4,0.001]
[1764475800207,10.41282751,3005.5,3005.4,0.4737]
[1764475800379,10.41282751,3005.5,3005.4,0.9416]
[1764475800380,10.62282751,3005.5,3005.4,0.9416]
[1764475800580,10.62282751,3005.5,3005.4,0.4737]
[1764475800875,7.08559411,3005.5,3005.4,0.9416]
[1764475801095,7.29559411,3005.5,3005.4,0.9416]
[1764475801295,0.21,3005.5,3005.4,0.9416]
[1764475802876,0.21,3005.5,3005.4,0.4737]
[1764475803497,0.21,3005.5,3005.4,0.9416]
[1764475804914,3.7829334,3005.5,3005.4,0.001]
[1764475805114,4.11886773,3005.5,3005.4,0.001]
[1764475807219,5.81526235,3005.5,3005.4,0.001]
[1764475808112,5.23467207,3005.5,3005.4,0.001]
[1764475808688,4.11886773,3005.5,3005.4,0.001]
[1764475808906,0.21,3005.5,3005.4,0.4737]
[1764475809187,0.21,3005.5,3005.4,0.9416]
[1764475809685,3.5372334,3005.5,3005.4,0.9416]
[1764475811122,3.5372334,3005.5,3005.4,0.4737]
[1764475812683,3.87316773,3005.5,3005.4,0.4737]
[1764475813825,3.5372334,3005.5,3005.4,0.9416]
[1764475815131,0.72559411,3005.6,3005.4,0.9416]
[1764475815421,0.72559411,3005.6,3005.5,0.4679]
[1764475815720,0.72559411,3005.6,3005.5,0.9406]
[1764475818924,0.21,3005.7,3005.5,0.9406]
[1764475819125,0.21,3005.7,3005.6,0.9406]
[1764475819503,0.93559411,3005.7,3005.6,0.9406]
[1764475822206,4.26260612,3005.7,3005.6,0.9406]
[1764475822892,0.21,3005.7,3005.6,0.4727]
[1764475823096,0.21,3005.7,3005.6,0.9524]
[1764475823299,3.53701201,3005.7,3005.6,0.9524]
[1764475826329,0.21,3005.7,3005.6,0.9524]
[1764475827418,3.53701201,3005.7,3005.6,0.9524]
[1764475829799,3.53701201,3005.7,3005.6,0.4727]
[1764475831526,0.21,3005.7,3005.6,0.4727]
[1764475831711,0.21,3005.7,3005.6,0.9524]
[1764475833032,4.05454506,3005.8,3005.6,0.9524]
[1764475833242,0.21,3005.7,3005.6,0.4797]
[1764475834798,3.53701201,3005.7,3005.6,0.9789]
[1764475835164,0.21,3005.7,3005.6,0.9789]
[1764475835359,0.002,3005.8,3005.6,0.4992]
[1764475835665,0.002,3005.8,3005.7,0.9789]
[1764475841349,0.002,3005.8,3005.7,1.41294013]
[1764475841551,0.002,3005.8,3005.7,1.44621025]
[1764475842859,0.002,3005.8,3005.7,4.77322226]
[1764475843428,0.002,3005.8,3005.7,5.38872626]
[1764475847070,0.002,3005.8,3005.7,5.72120874]
[1764475848367,0.002,3006.0,3005.9,0.73798648]
[1764475848567,0.002,3006.0,3005.9,6.27792479]
[1764475848767,0.002,3006.0,3005.9,6.42514231]
[1764475849060,0.002,3006.0,3005.9,6.89087928]
[1764475849360,0.002,3006.0,3005.9,6.5251289]
[1764475849530,0.002,3006.0,3005.9,9.88518744]
[1764475849732,0.002,3006.0,3005.9,9.85191954]
[1764475851065,0.002,3006.0,3005.9,6.48672965]
[1764475851971,0.002,3006.0,3005.9,9.75193295]
[1764475852143,0.002,3006.0,3005.9,9.71866505]
[1764475853670,0.002,3006.0,3005.9,10.05114753]
[1764475853870,0.002,3006.0,3005.9,10.18440202]
[1764475855255,0.002,3006.0,3005.9,9.85191954]
[1764475855572,0.002,3006.0,3005.9,10.18440202]
[1764475857249,0.002,3006.0,3005.9,9.85191954]
[1764475857660,0.002,3006.0,3005.9,9.44641554]
[1764475859682,0.002,3006.0,3005.9,9.85191954]
[1764475860056,0.002,3006.0,3005.9,10.18440202]
[1764475860578,0.002,3006.0,3005.9,9.85191954]
[1764475861074,0.002,3006.0,3005.9,5.08593154]
[1764475861379,0.002,3006.0,3005.9,5.57343154]
[1764475861585,0.002,3006.0,3005.9,6.01220344]
[1764475862755,0.002,3006.0,3005.9,5.97893554]
[1764475864590,0.2807,3006.0,3005.9,3.32679064]
[1764475865484,0.002,3006.0,3005.9,3.32679064]
[1764475865858,0.002,3006.0,3005.9,3.78359064]
[1764475866195,0.002,3006.0,3005.9,3.81685854]
[1764475869265,0.002,3006.0,3005.9,0.0332679]
[1764475869460,0.002,3006.0,3005.9,3.32679064]
[1764475869660,0.2807,3006.0,3005.9,3.32679064]
[1764475871670,0.002,3006.0,3005.9,3.32679064]
[1764475872986,0.2825,3006.0,3005.9,3.32679064]
[1764475875772,0.7383,3006.0,3005.8,3.53784619]
[1764475875967,0.0046,3005.9,3005.8,3.94335019]
[1764475877098,0.002,3006.0,3005.8,7.72705151]
[1764475877268,0.002,3006.0,3005.8,4.40015019]
[1764475877469,0.002,3006.0,3005.8,7.72705151]
[1764475880297,0.002,3006.0,3005.8,8.20695151]
[1764475880798,0.002,3006.0,3005.9,0.0332679]
[1764475880978,0.002,3006.0,3005.9,0.4888679]
[1764475881372,0.002,3006.0,3005.9,0.4556]
[1764475882697,0.002,3006.0,3005.9,0.4888679]
[1764475882903,0.002,3006.0,3005.9,3.81565854]
[1764475884778,0.2864,3006.0,3005.9,3.78239064]
[1764475886576,0.002,3006.0,3005.9,4.30045854]
[1764475887580,0.002,3006.0,3005.9,3.78239064]
[1764475887779,0.002,3006.0,3005.9,4.26719064]
[1764475887980,0.002,3006.0,3005.9,4.75039064]
[1764475888381,0.002,3006.0,3005.9,4.26719064]
[1764475888607,0.002,3006.0,3005.9,4.30045854]
[1764475891879,0.002,3006.0,3005.9,4.26719064]
[1764475893707,0.002,3006.0,3005.9,4.30045854]
[1764475900815,0.002,3006.0,3005.9,4.78365854]
[1764475901009,0.002,3006.0,3005.9,4.30045854]
[1764475901212,0.002,3006.0,3005.9,4.30145854]
[1764475903989,0.002,3006.0,3005.9,4.78465854]
[1764475904187,0.002,3006.0,3005.9,5.9399076]
[1764475904689,0.002,3006.0,3005.9,6.3454116]
[1764475904889,0.002,3006.0,3005.9,7.07100571]
[1764475905211,0.002,3006.0,3005.9,7.03773781]
[1764475905584,0.002,3006.0,3005.9,8.54744331]
[1764475905788,0.002,3006.0,3005.9,7.37022029]
[1764475906414,0.002,3006.0,3005.9,11.78469897]
[1764475906599,0.002,3006.0,3005.9,7.37022029]
[1764475907212,0.002,3006.0,3005.9,10.60015419]
[1764475908618,0.002,3006.0,3005.9,11.78395912]
[1764475909619,0.002,3006.0,3005.9,11.45147664]
[1764475911695,0.002,3006.0,3005.9,11.78395912]
[1764475912332,0.002,3006.0,3005.9,8.22154274]
[1764475913017,0.002,3006.0,3005.9,8.76402522]
[1764475915206,0.002,3006.0,3005.9,7.58022029]
[1764475917600,0.002,3006.0,3005.9,7.24773781]
[1764475919133,0.002,3006.0,3005.9,7.58022029]
[1764475919302,0.002,3006.0,3005.9,7.37022029]
[1764475919502,0.002,3006.0,3005.9,7.58022029]
[1764475920529,0.002,3006.0,3005.9,7.22753781]
[1764475921102,0.002,3006.0,3005.9,7.56002029]
[1764475921352,0.002,3006.0,3005.9,10.78995419]
[1764475921527,0.002,3006.0,3005.9,10.24747171]
[1764475921730,0.002,3006.0,3005.9,11.97375912]
[1764475926935,0.002,3006.0,3005.9,11.64127664]
[1764475927120,0.002,3006.0,3005.9,11.97375912]
[1764475927511,0.002,3006.0,3005.9,11.64127664]
[1764475928112,0.002,3006.0,3005.9,11.97375912]
[1764475929852,0.002,3006.0,3005.9,11.76375912]
[1764475930053,0.002,3006.0,3005.9,11.97375912]
[1764475930523,0.002,3006.0,3005.9,8.74382522]
[1764475930722,0.002,3006.0,3005.9,7.56002029]
[1764475932032,0.002,3006.0,3005.9,6.55453781]
[1764475932240,0.7299,3006.0,3005.9,3.78339064]
[1764475932439,0.7299,3006.0,3005.9,7.04659244]
[1764475932739,0.4637,3006.0,3005.9,7.01332454]
[1764475933122,0.4637,3006.0,3005.9,7.41882854]
[1764475933538,0.4637,3006.0,3005.9,7.01332454]
[1764475933755,0.7299,3006.0,3005.9,7.01332454]
[1764475933958,0.7299,3006.0,3005.9,7.41882854]
[1764475937145,0.4637,3006.0,3005.9,7.41882854]
[1764475938352,0.002,3006.0,3005.9,9.1209063]
[1764475938518,0.002,3006.0,3005.9,7.90672854]
[1764475938718,0.7277,3006.0,3005.9,7.41882854]
[1764475939115,0.2505,3006.0,3005.9,7.41882854]
[1764475939553,0.7277,3006.0,3005.9,7.41882854]
[1764475945154,0.2505,3006.0,3005.9,7.41882854]
[1764475946628,0.7277,3006.0,3005.9,4.18889464]
[1764475950058,0.2505,3006.0,3005.9,4.18889464]
[1764475951455,0.002,3006.0,3005.9,4.18889464]
[1764475951663,0.002,3006.0,3005.9,4.64549464]
[1764475951842,0.002,3006.0,3005.9,4.67876254]
[1764475952231,0.002,3006.0,3005.9,4.22216254]
[1764475952430,0.2528,3006.0,3005.9,4.22216254]
[1764475954435,0.2528,3006.0,3005.9,4.18889464]
[1764475954762,0.2528,3006.0,3005.9,4.22216254]
[1764475955962,0.2528,3006.0,3005.9,4.18889464]
[1764475957769,0.7278,3006.0,3005.9,4.18889464]
[1764475958266,0.7278,3006.0,3005.9,4.22216254]
[1764475958456,0.2528,3006.0,3005.9,4.22216254]
[1764475958637,0.2528,3006.0,3005.9,4.18889464]
[1764475958837,0.2528,3006.0,3005.9,4.22216254]
[1764475959369,0.2528,3006.0,3005.9,4.18889464]
[1764475960449,0.2528,3006.0,3005.9,4.22216254]
[1764475960967,0.2528,3006.0,3005.9,4.18889464]
[1764475961260,0.2528,3006.0,3005.9,4.22216254]
[1764475964547,0.002,3006.0,3005.9,4.55464502]
[1764475964739,0.002,3006.0,3005.9,4.22216254]
[1764475967075,0.255,3006.0,3005.9,4.22216254]
[1764475968375,0.002,3006.0,3005.9,5.14436254]
[1764475968576,0.002,3006.0,3005.9,6.45404337]
[1764475969074,0.002,3006.0,3005.9,5.98844337]
[1764475971574,0.002,3006.0,3005.9,6.45404337]
[1764475976688,0.002,3006.0,3005.9,5.98844337]
[1764475979851,0.002,3006.0,3005.9,5.53184337]
[1764475980569,0.002,3006.0,3005.9,5.99774337]
[1764475982282,0.002,3006.0,3005.9,7.65449345]
[1764475982448,0.002,3006.0,3005.9,7.62122555]
[1764475983051,0.002,3006.0,3005.9,7.95370803]
[1764475983451,0.002,3006.0,3005.9,8.34681966]
[1764475983647,0.002,3006.0,3005.9,8.67930214]
[1764475983878,0.002,3006.0,3005.9,8.34681966]
[1764475984177,0.002,3006.0,3005.9,8.67930214]
[1764475984578,0.002,3006.0,3005.9,8.34681966]
[1764475985581,0.002,3006.0,3005.9,8.67930214]
[1764475985782,0.002,3006.0,3005.9,8.34681966]
[1764475989665,0.7275,3006.0,3005.9,3.10737894]
[1764475989866,0.7275,3006.0,3005.9,0.4566]
[1764475990081,0.7275,3006.0,3005.9,0.6666]
[1764475990562,0.7275,3006.0,3005.9,3.99339064]
[1764475995485,0.7275,3006.0,3005.9,3.78339064]
[1764475995682,0.7275,3006.0,3005.9,3.99339064]
[1764475995986,0.7275,3006.0,3005.9,4.02665854]
[1764475996193,0.7275,3006.0,3005.9,3.99339064]
[1764475996793,0.7275,3006.0,3005.9,4.02665854]
[1764475998092,0.7275,3006.0,3005.9,3.99339064]
[1764476000166,0.7275,3006.0,3005.9,0.4898679]
[1764476000367,0.7275,3006.0,3005.9,0.001]
[1764476001591,0.7275,3006.0,3005.9,3.32779064]
[1764476001762,0.7275,3006.0,3005.9,0.001]
[1764476002196,0.7275,3006.0,3005.9,3.32779064]
[1764476007298,0.7275,3006.0,3005.9,0.001]
[1764476016491,4.45977613,3006.0,3005.9,0.001]
[1764476017788,1.13309616,3006.0,3005.9,0.001]
[1764476019302,4.45977613,3006.0,3005.9,0.001]
[1764476020019,1.13309616,3006.0,3005.9,0.001]
[1764476020312,4.45977613,3006.0,3005.9,0.001]
[1764476020918,1.13309616,3006.0,3005.9,0.001]
[1764476021084,4.45977613,3006.0,3005.9,0.001]
[1764476021686,1.13309616,3006.0,3005.9,0.001]
[1764476024641,0.7275,3006.0,3005.9,0.001]
[1764476027121,4.05417997,3006.0,3005.9,0.001]
[1764476027615,3.55837997,3006.0,3005.9,0.001]
[1764476027819,4.02877997,3006.0,3005.9,0.001]
[1764476029541,4.75437408,3006.0,3005.9,0.001]
[1764476029741,9.14962611,3006.0,3005.9,0.001]
[1764476029933,9.36062611,3006.0,3005.9,0.001]
[1764476031936,6.1306031,3006.0,3005.9,0.001]
[1764476033137,5.58366877,3006.0,3005.9,0.001]
[1764476033955,5.11326877,3006.0,3005.9,0.001]
[1764476034116,5.57136877,3006.0,3005.9,0.001]
[1764476039331,0.72759411,3006.0,3005.9,0.492]
[1764476039740,0.99729411,3006.0,3005.9,0.001]
[1764476040117,0.2717,3006.0,3005.9,0.001]
[1764476042515,0.7279,3006.0,3005.9,0.001]
[1764476043023,0.2717,3006.0,3005.9,0.001]
[1764476044952,0.7279,3006.0,3005.9,0.001]
[1764476045348,4.05457997,3006.0,3005.9,0.001]
[1764476046428,4.81388618,3006.0,3005.9,0.001]
[1764476046827,5.53948029,3006.0,3005.9,0.001]
[1764476050126,5.87541462,3006.0,3005.9,0.001]
[1764476051028,5.53948029,3006.0,3005.9,0.001]
[1764476054649,5.87541462,3006.0,3005.9,0.001]
[1764476055050,5.53948029,3006.0,3005.9,0.001]
[1764476055363,5.87541462,3006.0,3005.9,0.001]
[1764476056241,5.53948029,3006.0,3005.9,0.001]
[1764476057646,5.9746049,3006.0,3005.9,0.001]
[1764476058550,5.87541462,3006.0,3005.9,0.001]
[1764476059155,5.53948029,3006.0,3005.9,0.001]
[1764476059361,5.87541462,3006.0,3005.9,0.001]
[1764476059860,5.53948029,3006.0,3005.9,0.001]
[1764476060366,5.87541462,3006.0,3005.9,0.001]
[1764476061035,5.63867057,3006.0,3005.9,0.001]
[1764476061235,5.9746049,3006.0,3005.9,0.001]
[1764476062564,5.53948029,3006.0,3005.9,0.001]
[1764476063536,5.87541462,3006.0,3005.9,0.001]
[1764476066267,5.53948029,3006.0,3005.9,0.001]
[1764476067162,0.72759411,3006.0,3005.9,0.9416]
[1764476067665,0.002,3006.0,3005.9,0.9416]
[1764476070858,0.002,3006.0,3005.9,0.001]
[1764476071053,0.2664,3006.0,3005.9,0.001]
[1764476072972,0.002,3006.0,3005.9,0.4677]
[1764476081681,0.33793433,3006.0,3005.9,0.4677]
[1764476081977,0.33793433,3006.0,3005.9,0.001]
[1764476082182,0.002,3006.0,3005.9,0.001]
[1764476083583,0.33793433,3006.0,3005.9,0.001]
[1764476083886,0.002,3006.0,3005.9,0.001]
[1764476084783,0.002,3006.0,3005.9,0.4677]
[1764476092390,0.33793433,3006.0,3005.9,0.4677]
[1764476092688,0.002,3006.0,3005.9,0.4677]
[1764476093195,0.002,3006.0,3005.9,0.001]
[1764476093588,0.2664,3006.0,3005.9,0.001]
[1764476093793,1.55974395,3006.0,3005.9,0.001]
[1764476094483,1.89567828,3006.0,3005.9,0.001]